Workbook

Sheet Pacing Guide
A5: Step 1: Choose Chapters Chapters Use CTRL to select or deslect more than one chapter/section at a time | F5: Step 3: Optional Projects Input or change minutes for Projects. BY DEFAULT MINUTES FOR WORD PRO PROJECTS IS SHOWN AS 30 MINUTES TO COMPLETE EACH PROJECT. | I5: Week to Cover | J5: Pacing Guide: TestOut Pro Certified: Microsoft Word | K5: Minutes per Section | L5: Running Total
I6: 1 | J6: 01.01: Word and the Microsoft Suite | K6: 5 | L6: =( IF(ISNUMBER(SEARCH("Grand Total",$J6)),"", IF(ISBLANK($K6), "", SUM($K$6:K6) )) ) -> 5 | M6: 135
F7: Word Pro Projects: Requires Office to be Installed | G7: Minutes | I7: =IFERROR(IF(K6=0,"",ROUNDDOWN(L6/Sheet2!$B$7,0)+1),"") -> 1 | J7: 01.02: Course Features | K7: 3 | L7: =( IF(ISNUMBER(SEARCH("Grand Total",$J7)),"", IF(ISBLANK($K7), "", SUM($K$6:K7) )) ) -> 8
G8: 30 | I8: =IFERROR(IF(K7=0,"",ROUNDDOWN(L7/Sheet2!$B$7,0)+1),"") -> 1 | J8: 02.01: Getting Started with Office | K8: 18 | L8: =( IF(ISNUMBER(SEARCH("Grand Total",$J8)),"", IF(ISBLANK($K8), "", SUM($K$6:K8) )) ) -> 26
G9: 30 | I9: =IFERROR(IF(K8=0,"",ROUNDDOWN(L8/Sheet2!$B$7,0)+1),"") -> 2 | J9: 02.02: Customizing Views and Options | K9: 7 | L9: =( IF(ISNUMBER(SEARCH("Grand Total",$J9)),"", IF(ISBLANK($K9), "", SUM($K$6:K9) )) ) -> 33 | M9: 0
G10: 30 | I10: =IFERROR(IF(K9=0,"",ROUNDDOWN(L9/Sheet2!$B$7,0)+1),"") -> 2 | J10: 02.03: Printing Files | K10: 5 | L10: =( IF(ISNUMBER(SEARCH("Grand Total",$J10)),"", IF(ISBLANK($K10), "", SUM($K$6:K10) )) ) -> 38 | M10: 135
I11: =IFERROR(IF(K10=0,"",ROUNDDOWN(L10/Sheet2!$B$7,0)+1),"") -> 2 | J11: 02.04: Navigating Files | K11: 9 | L11: =( IF(ISNUMBER(SEARCH("Grand Total",$J11)),"", IF(ISBLANK($K11), "", SUM($K$6:K11) )) ) -> 47 | M11: 0
F12: My Projects and Assignments (Not part of Word Pro) | G12: Minutes | I12: =IFERROR(IF(K11=0,"",ROUNDDOWN(L11/Sheet2!$B$7,0)+1),"") -> 2 | J12: 02.05: Working with Objects | K12: 12 | L12: =( IF(ISNUMBER(SEARCH("Grand Total",$J12)),"", IF(ISBLANK($K12), "", SUM($K$6:K12) )) ) -> 59 | M12: 60
G13: 0 | I13: =IFERROR(IF(K12=0,"",ROUNDDOWN(L12/Sheet2!$B$7,0)+1),"") -> 3 | J13: 03.01: Creating Documents and Using the Clipboard | K13: 18 | L13: =( IF(ISNUMBER(SEARCH("Grand Total",$J13)),"", IF(ISBLANK($K13), "", SUM($K$6:K13) )) ) -> 77
G14: 0 | I14: =IFERROR(IF(K13=0,"",ROUNDDOWN(L13/Sheet2!$B$7,0)+1),"") -> 4 | J14: 03.02: Modifying Fonts | K14: 8 | L14: =( IF(ISNUMBER(SEARCH("Grand Total",$J14)),"", IF(ISBLANK($K14), "", SUM($K$6:K14) )) ) -> 85
G15: 0 | I15: =IFERROR(IF(K14=0,"",ROUNDDOWN(L14/Sheet2!$B$7,0)+1),"") -> 4 | J15: 03.03: Formatting Paragraphs | K15: 16 | L15: =( IF(ISNUMBER(SEARCH("Grand Total",$J15)),"", IF(ISBLANK($K15), "", SUM($K$6:K15) )) ) -> 101
G16: 0 | I16: =IFERROR(IF(K15=0,"",ROUNDDOWN(L15/Sheet2!$B$7,0)+1),"") -> 5 | J16: 03.04: Editing Documents | K16: 10 | L16: =( IF(ISNUMBER(SEARCH("Grand Total",$J16)),"", IF(ISBLANK($K16), "", SUM($K$6:K16) )) ) -> 111
G17: 0 | I17: =IFERROR(IF(K16=0,"",ROUNDDOWN(L16/Sheet2!$B$7,0)+1),"") -> 5 | J17: 04.01: Formatting Pages | K17: 8 | L17: =( IF(ISNUMBER(SEARCH("Grand Total",$J17)),"", IF(ISBLANK($K17), "", SUM($K$6:K17) )) ) -> 119
G18: 0 | I18: =IFERROR(IF(K17=0,"",ROUNDDOWN(L17/Sheet2!$B$7,0)+1),"") -> 5 | J18: 04.02: Inserting Illustrations and Other Elements | K18: 13 | L18: =( IF(ISNUMBER(SEARCH("Grand Total",$J18)),"", IF(ISBLANK($K18), "", SUM($K$6:K18) )) ) -> 132
G19: 0 | I19: =IFERROR(IF(K18=0,"",ROUNDDOWN(L18/Sheet2!$B$7,0)+1),"") -> 6 | J19: 04.03: Creating and Formatting Tables | K19: 11 | L19: =( IF(ISNUMBER(SEARCH("Grand Total",$J19)),"", IF(ISBLANK($K19), "", SUM($K$6:K19) )) ) -> 143
A20: Step 2: Weeks Input number of weeks using Word Pro. | I20: =IFERROR(IF(K19=0,"",ROUNDDOWN(L19/Sheet2!$B$7,0)+1),"") -> 6 | J20: 04.04: Using Themes, Styles, and Templates | K20: 11 | L20: =( IF(ISNUMBER(SEARCH("Grand Total",$J20)),"", IF(ISBLANK($K20), "", SUM($K$6:K20) )) ) -> 154
I21: =IFERROR(IF(K20=0,"",ROUNDDOWN(L20/Sheet2!$B$7,0)+1),"") -> 7 | J21: 05.01: Managing References | K21: 12 | L21: =( IF(ISNUMBER(SEARCH("Grand Total",$J21)),"", IF(ISBLANK($K21), "", SUM($K$6:K21) )) ) -> 166
I22: =IFERROR(IF(K21=0,"",ROUNDDOWN(L21/Sheet2!$B$7,0)+1),"") -> 7 | J22: 05.02: Managing Headers, Footers, and Sections | K22: 16 | L22: =( IF(ISNUMBER(SEARCH("Grand Total",$J22)),"", IF(ISBLANK($K22), "", SUM($K$6:K22) )) ) -> 182
A23: 12 | I23: =IFERROR(IF(K22=0,"",ROUNDDOWN(L22/Sheet2!$B$7,0)+1),"") -> 8 | J23: 05.03: Using Office Collaboration Features | K23: 9 | L23: =( IF(ISNUMBER(SEARCH("Grand Total",$J23)),"", IF(ISBLANK($K23), "", SUM($K$6:K23) )) ) -> 191
I24: =IFERROR(IF(K23=0,"",ROUNDDOWN(L23/Sheet2!$B$7,0)+1),"") -> 8 | J24: 06.01: Word Live Projects | K24: 4 | L24: =( IF(ISNUMBER(SEARCH("Grand Total",$J24)),"", IF(ISBLANK($K24), "", SUM($K$6:K24) )) ) -> 195
I25: =IFERROR(IF(K24=0,"",ROUNDDOWN(L24/Sheet2!$B$7,0)+1),"") -> 8 | J25: 08.01: Using Custom Styles and Themes | K25: 17 | L25: =( IF(ISNUMBER(SEARCH("Grand Total",$J25)),"", IF(ISBLANK($K25), "", SUM($K$6:K25) )) ) -> 212
I26: =IFERROR(IF(K25=0,"",ROUNDDOWN(L25/Sheet2!$B$7,0)+1),"") -> 9 | J26: 08.02: Using Charts | K26: 12 | L26: =( IF(ISNUMBER(SEARCH("Grand Total",$J26)),"", IF(ISBLANK($K26), "", SUM($K$6:K26) )) ) -> 224
I27: =IFERROR(IF(K26=0,"",ROUNDDOWN(L26/Sheet2!$B$7,0)+1),"") -> 9 | J27: 09.01: Advanced Find and Replace | K27: 12 | L27: =( IF(ISNUMBER(SEARCH("Grand Total",$J27)),"", IF(ISBLANK($K27), "", SUM($K$6:K27) )) ) -> 236
I28: =IFERROR(IF(K27=0,"",ROUNDDOWN(L27/Sheet2!$B$7,0)+1),"") -> 10 | J28: 09.02: Indexes and Captions | K28: 11 | L28: =( IF(ISNUMBER(SEARCH("Grand Total",$J28)),"", IF(ISBLANK($K28), "", SUM($K$6:K28) )) ) -> 247
I29: =IFERROR(IF(K28=0,"",ROUNDDOWN(L28/Sheet2!$B$7,0)+1),"") -> 10 | J29: 09.03: Review and Protect Documents | K29: 19 | L29: =( IF(ISNUMBER(SEARCH("Grand Total",$J29)),"", IF(ISBLANK($K29), "", SUM($K$6:K29) )) ) -> 266
I30: =IFERROR(IF(K29=0,"",ROUNDDOWN(L29/Sheet2!$B$7,0)+1),"") -> 11 | J30: 10.01: Forms and Fields | K30: 10 | L30: =( IF(ISNUMBER(SEARCH("Grand Total",$J30)),"", IF(ISBLANK($K30), "", SUM($K$6:K30) )) ) -> 276
I31: =IFERROR(IF(K30=0,"",ROUNDDOWN(L30/Sheet2!$B$7,0)+1),"") -> 12 | J31: 10.02: Mail Merge | K31: 12 | L31: =( IF(ISNUMBER(SEARCH("Grand Total",$J31)),"", IF(ISBLANK($K31), "", SUM($K$6:K31) )) ) -> 288
I32: =IFERROR(IF(K31=0,"",ROUNDDOWN(L31/Sheet2!$B$7,0)+1),"") -> 12 | J32: 10.03: Using Macros | K32: 11 | L32: =( IF(ISNUMBER(SEARCH("Grand Total",$J32)),"", IF(ISBLANK($K32), "", SUM($K$6:K32) )) ) -> 299
I33: =IFERROR(IF(K32=0,"",ROUNDDOWN(L32/Sheet2!$B$7,0)+1),"") -> 13 | J33: Grand Total | K33: 299 | L33: =( IF(ISNUMBER(SEARCH("Grand Total",$J33)),"", IF(ISBLANK($K33), "", SUM($K$6:K33) )) ) -> 

Sheet Advanced Guide (hidden)
B2: Step 6: Class Components For each Component, select Yes or No from the drop-down • Yes = Retains/Adds Time • No = Removes Time
D7: Avg. # of Min. | E7: Homework Recommendations
E8: Traditional | F8: Hybrid | P8: Online | Q8: Flipped
B9: Videos | C9: Yes | D9: 15 | E9: No | F9: No | G9: =IF(C9="No",-15,0) -> 0 | P9: Yes | Q9: No
B10: Skills Lab | C10: Yes | D10: 25 | E10: Yes | F10: Yes | G10: =IF(C10="No",-25,0) -> 0 | P10: Yes | Q10: Yes
B11: Challenge Lab | C11: Yes | D11: 15 | E11: Yes | F11: No | G11: =IF(C11="No",-15,0) -> 0 | P11: Yes | Q11: Yes
B12: Applied | C12: Yes | D12: 20 | E12: Yes | F12: No | G12: =IF(C12="No",-20,0) -> 0 | P12: Yes | Q12: No
B13: Class Lectures | C13: 0
B15: School Week | C15: Sections Per Week | D15: Content Per Week | E15: Class Activity Time | F15: Over Under Time | G15: Column2 | H15: Fact & Tip | I15: Skills | J15: Challenge | K15: Applied | L15: Videos | M15: discussions | N15: Min. Per Week | V15: Content Per Week
B16: 1 | C16: =IFERROR(IF(V16=0,"",COUNTIF('Pacing Guide'!$I$6:$I$33,1)),"") -> 3 | D16: =IF(SUMIF('Pacing Guide'!I$6:I$33,B16,'Pacing Guide'!K$6:K$33)=0,"",SUMIF('Pacing Guide'!I$6:I$33,B16,'Pacing Guide'!K$6:K$33)) -> 26 | E16: =IFERROR(D16+M16+I16+J16+K16+L16,"") -> 26 | F16: =IFERROR(IF(Table3[[#This Row],[Class Activity Time]]=0,"",N16-E16),"") -> -26 | H16: =C16*'Advanced Guide'!#REF! ->  | I16: =Table3[[#This Row],[Sections Per Week]]*$G$10 -> 0 | J16: =$G$11*Table3[[#This Row],[Sections Per Week]] -> 0 | K16: =Table3[[#This Row],[Sections Per Week]]*$G$12 -> 0 | L16: =Table3[[#This Row],[Sections Per Week]]*$G$9 -> 0 | M16: ='Advanced Guide'!$C$13*Table3[[#This Row],[Sections Per Week]] -> 0 | N16: =IF(Table3[[#This Row],[Content Per Week]]=0,"",'Pacing Guide'!$A$32*'Advanced Guide'!$P$18) -> 0 | V16: =Table3[[#This Row],[Content Per Week]]/$P$17 -> 00:26:00 | X16: =E16/1440 -> 00:26:00 | Y16: =F16/1440 -> -0.01805555556
B17: 2 | C17: =IFERROR(IF(V17=0,"",COUNTIF('Pacing Guide'!$I$6:$I$33,1)),"") -> 3 | D17: =IF(SUMIF('Pacing Guide'!I$6:I$33,B17,'Pacing Guide'!K$6:K$33)=0,"",SUMIF('Pacing Guide'!I$6:I$33,B17,'Pacing Guide'!K$6:K$33)) -> 33 | E17: 33 | F17: =IFERROR(IF(Table3[[#This Row],[Class Activity Time]]=0,"",N17-E17),"") -> -33 | H17: =C17*'Advanced Guide'!#REF! ->  | I17: =Table3[[#This Row],[Sections Per Week]]*$G$10 -> 0 | J17: =$G$11*Table3[[#This Row],[Sections Per Week]] -> 0 | K17: =Table3[[#This Row],[Sections Per Week]]*$G$12 -> 0 | L17: =Table3[[#This Row],[Sections Per Week]]*$G$9 -> 0 | M17: ='Advanced Guide'!$C$13*Table3[[#This Row],[Sections Per Week]] -> 0 | N17: =IF(Table3[[#This Row],[Content Per Week]]=0,"",'Pacing Guide'!$A$32*'Advanced Guide'!$P$18) -> 0 | P17: 1440 | V17: =Table3[[#This Row],[Content Per Week]]/$P$17 -> 00:33:00
B18: 3 | C18: =IFERROR(IF(V18=0,"",COUNTIF('Pacing Guide'!$I$6:$I$33,1)),"") -> 3 | D18: =IF(SUMIF('Pacing Guide'!I$6:I$33,B18,'Pacing Guide'!K$6:K$33)=0,"",SUMIF('Pacing Guide'!I$6:I$33,B18,'Pacing Guide'!K$6:K$33)) -> 18 | E18: 18 | F18: =IFERROR(IF(Table3[[#This Row],[Class Activity Time]]=0,"",N18-E18),"") -> -18 | H18: =C18*'Advanced Guide'!#REF! ->  | I18: =Table3[[#This Row],[Sections Per Week]]*$G$10 -> 0 | J18: =$G$11*Table3[[#This Row],[Sections Per Week]] -> 0 | K18: =Table3[[#This Row],[Sections Per Week]]*$G$12 -> 0 | L18: =Table3[[#This Row],[Sections Per Week]]*$G$9 -> 0 | M18: ='Advanced Guide'!$C$13*Table3[[#This Row],[Sections Per Week]] -> 0 | N18: =IF(Table3[[#This Row],[Content Per Week]]=0,"",'Pacing Guide'!$A$32*'Advanced Guide'!$P$18) -> 0 | P18: 60 | V18: =Table3[[#This Row],[Content Per Week]]/$P$17 -> 00:18:00
B19: 4 | C19: =IFERROR(IF(V19=0,"",COUNTIF('Pacing Guide'!$I$6:$I$33,1)),"") -> 3 | D19: =IF(SUMIF('Pacing Guide'!I$6:I$33,B19,'Pacing Guide'!K$6:K$33)=0,"",SUMIF('Pacing Guide'!I$6:I$33,B19,'Pacing Guide'!K$6:K$33)) -> 24 | E19: 24 | F19: =IFERROR(IF(Table3[[#This Row],[Class Activity Time]]=0,"",N19-E19),"") -> -24 | H19: =C19*'Advanced Guide'!#REF! ->  | I19: =Table3[[#This Row],[Sections Per Week]]*$G$10 -> 0 | J19: =$G$11*Table3[[#This Row],[Sections Per Week]] -> 0 | K19: =Table3[[#This Row],[Sections Per Week]]*$G$12 -> 0 | L19: =Table3[[#This Row],[Sections Per Week]]*$G$9 -> 0 | M19: ='Advanced Guide'!$C$13*Table3[[#This Row],[Sections Per Week]] -> 0 | N19: =IF(Table3[[#This Row],[Content Per Week]]=0,"",'Pacing Guide'!$A$32*'Advanced Guide'!$P$18) -> 0 | V19: =Table3[[#This Row],[Content Per Week]]/$P$17 -> 00:24:00
B20: 5 | C20: =IFERROR(IF(V20=0,"",COUNTIF('Pacing Guide'!$I$6:$I$33,1)),"") -> 3 | D20: =IF(SUMIF('Pacing Guide'!I$6:I$33,B20,'Pacing Guide'!K$6:K$33)=0,"",SUMIF('Pacing Guide'!I$6:I$33,B20,'Pacing Guide'!K$6:K$33)) -> 31 | E20: 31 | F20: =IFERROR(IF(Table3[[#This Row],[Class Activity Time]]=0,"",N20-E20),"") -> -31 | H20: =C20*'Advanced Guide'!#REF! ->  | I20: =Table3[[#This Row],[Sections Per Week]]*$G$10 -> 0 | J20: =$G$11*Table3[[#This Row],[Sections Per Week]] -> 0 | K20: =Table3[[#This Row],[Sections Per Week]]*$G$12 -> 0 | L20: =Table3[[#This Row],[Sections Per Week]]*$G$9 -> 0 | M20: ='Advanced Guide'!$C$13*Table3[[#This Row],[Sections Per Week]] -> 0 | N20: =IF(Table3[[#This Row],[Content Per Week]]=0,"",'Pacing Guide'!$A$32*'Advanced Guide'!$P$18) -> 0 | V20: =Table3[[#This Row],[Content Per Week]]/$P$17 -> 00:31:00
B21: 6 | C21: =IFERROR(IF(V21=0,"",COUNTIF('Pacing Guide'!$I$6:$I$33,1)),"") -> 3 | D21: =IF(SUMIF('Pacing Guide'!I$6:I$33,B21,'Pacing Guide'!K$6:K$33)=0,"",SUMIF('Pacing Guide'!I$6:I$33,B21,'Pacing Guide'!K$6:K$33)) -> 22 | E21: 22 | F21: =IFERROR(IF(Table3[[#This Row],[Class Activity Time]]=0,"",N21-E21),"") -> -22 | H21: =C21*'Advanced Guide'!#REF! ->  | I21: =Table3[[#This Row],[Sections Per Week]]*$G$10 -> 0 | J21: =$G$11*Table3[[#This Row],[Sections Per Week]] -> 0 | K21: =Table3[[#This Row],[Sections Per Week]]*$G$12 -> 0 | L21: =Table3[[#This Row],[Sections Per Week]]*$G$9 -> 0 | M21: ='Advanced Guide'!$C$13*Table3[[#This Row],[Sections Per Week]] -> 0 | N21: =IF(Table3[[#This Row],[Content Per Week]]=0,"",'Pacing Guide'!$A$32*'Advanced Guide'!$P$18) -> 0 | V21: =Table3[[#This Row],[Content Per Week]]/$P$17 -> 00:22:00
B22: 7 | C22: =IFERROR(IF(V22=0,"",COUNTIF('Pacing Guide'!$I$6:$I$33,1)),"") -> 3 | D22: =IF(SUMIF('Pacing Guide'!I$6:I$33,B22,'Pacing Guide'!K$6:K$33)=0,"",SUMIF('Pacing Guide'!I$6:I$33,B22,'Pacing Guide'!K$6:K$33)) -> 28 | E22: 28 | F22: =IFERROR(IF(Table3[[#This Row],[Class Activity Time]]=0,"",N22-E22),"") -> -28 | H22: =C22*'Advanced Guide'!#REF! ->  | I22: =Table3[[#This Row],[Sections Per Week]]*$G$10 -> 0 | J22: =$G$11*Table3[[#This Row],[Sections Per Week]] -> 0 | K22: =Table3[[#This Row],[Sections Per Week]]*$G$12 -> 0 | L22: =Table3[[#This Row],[Sections Per Week]]*$G$9 -> 0 | M22: ='Advanced Guide'!$C$13*Table3[[#This Row],[Sections Per Week]] -> 0 | N22: =IF(Table3[[#This Row],[Content Per Week]]=0,"",'Pacing Guide'!$A$32*'Advanced Guide'!$P$18) -> 0 | V22: =Table3[[#This Row],[Content Per Week]]/$P$17 -> 00:28:00
B23: 8 | C23: =IFERROR(IF(V23=0,"",COUNTIF('Pacing Guide'!$I$6:$I$33,1)),"") -> 3 | D23: =IF(SUMIF('Pacing Guide'!I$6:I$33,B23,'Pacing Guide'!K$6:K$33)=0,"",SUMIF('Pacing Guide'!I$6:I$33,B23,'Pacing Guide'!K$6:K$33)) -> 30 | E23: 30 | F23: =IFERROR(IF(Table3[[#This Row],[Class Activity Time]]=0,"",N23-E23),"") -> -30 | H23: =C23*'Advanced Guide'!#REF! ->  | I23: =Table3[[#This Row],[Sections Per Week]]*$G$10 -> 0 | J23: =$G$11*Table3[[#This Row],[Sections Per Week]] -> 0 | K23: =Table3[[#This Row],[Sections Per Week]]*$G$12 -> 0 | L23: =Table3[[#This Row],[Sections Per Week]]*$G$9 -> 0 | M23: ='Advanced Guide'!$C$13*Table3[[#This Row],[Sections Per Week]] -> 0 | N23: =IF(Table3[[#This Row],[Content Per Week]]=0,"",'Pacing Guide'!$A$32*'Advanced Guide'!$P$18) -> 0 | V23: =Table3[[#This Row],[Content Per Week]]/$P$17 -> 00:30:00
B24: 9 | C24: =IFERROR(IF(V24=0,"",COUNTIF('Pacing Guide'!$I$6:$I$33,1)),"") -> 3 | D24: =IF(SUMIF('Pacing Guide'!I$6:I$33,B24,'Pacing Guide'!K$6:K$33)=0,"",SUMIF('Pacing Guide'!I$6:I$33,B24,'Pacing Guide'!K$6:K$33)) -> 24 | E24: 24 | F24: =IFERROR(IF(Table3[[#This Row],[Class Activity Time]]=0,"",N24-E24),"") -> -24 | H24: =C24*'Advanced Guide'!#REF! ->  | I24: =Table3[[#This Row],[Sections Per Week]]*$G$10 -> 0 | J24: =$G$11*Table3[[#This Row],[Sections Per Week]] -> 0 | K24: =Table3[[#This Row],[Sections Per Week]]*$G$12 -> 0 | L24: =Table3[[#This Row],[Sections Per Week]]*$G$9 -> 0 | M24: ='Advanced Guide'!$C$13*Table3[[#This Row],[Sections Per Week]] -> 0 | N24: =IF(Table3[[#This Row],[Content Per Week]]=0,"",'Pacing Guide'!$A$32*'Advanced Guide'!$P$18) -> 0 | V24: =Table3[[#This Row],[Content Per Week]]/$P$17 -> 00:24:00
B25: 10 | C25: =IFERROR(IF(V25=0,"",COUNTIF('Pacing Guide'!$I$6:$I$33,1)),"") -> 3 | D25: =IF(SUMIF('Pacing Guide'!I$6:I$33,B25,'Pacing Guide'!K$6:K$33)=0,"",SUMIF('Pacing Guide'!I$6:I$33,B25,'Pacing Guide'!K$6:K$33)) -> 30 | E25: 30 | F25: =IFERROR(IF(Table3[[#This Row],[Class Activity Time]]=0,"",N25-E25),"") -> -30 | H25: =C25*'Advanced Guide'!#REF! ->  | I25: =Table3[[#This Row],[Sections Per Week]]*$G$10 -> 0 | J25: =$G$11*Table3[[#This Row],[Sections Per Week]] -> 0 | K25: =Table3[[#This Row],[Sections Per Week]]*$G$12 -> 0 | L25: =Table3[[#This Row],[Sections Per Week]]*$G$9 -> 0 | M25: ='Advanced Guide'!$C$13*Table3[[#This Row],[Sections Per Week]] -> 0 | N25: =IF(Table3[[#This Row],[Content Per Week]]=0,"",'Pacing Guide'!$A$32*'Advanced Guide'!$P$18) -> 0 | V25: =Table3[[#This Row],[Content Per Week]]/$P$17 -> 00:30:00
B26: 11 | C26: =IFERROR(IF(V26=0,"",COUNTIF('Pacing Guide'!$I$6:$I$33,1)),"") -> 3 | D26: =IF(SUMIF('Pacing Guide'!I$6:I$33,B26,'Pacing Guide'!K$6:K$33)=0,"",SUMIF('Pacing Guide'!I$6:I$33,B26,'Pacing Guide'!K$6:K$33)) -> 10 | E26: 10 | F26: =IFERROR(IF(Table3[[#This Row],[Class Activity Time]]=0,"",N26-E26),"") -> -10 | H26: =C26*'Advanced Guide'!#REF! ->  | I26: =Table3[[#This Row],[Sections Per Week]]*$G$10 -> 0 | J26: =$G$11*Table3[[#This Row],[Sections Per Week]] -> 0 | K26: =Table3[[#This Row],[Sections Per Week]]*$G$12 -> 0 | L26: =Table3[[#This Row],[Sections Per Week]]*$G$9 -> 0 | M26: ='Advanced Guide'!$C$13*Table3[[#This Row],[Sections Per Week]] -> 0 | N26: =IF(Table3[[#This Row],[Content Per Week]]=0,"",'Pacing Guide'!$A$32*'Advanced Guide'!$P$18) -> 0 | V26: =Table3[[#This Row],[Content Per Week]]/$P$17 -> 00:10:00
B27: 12 | C27: =IFERROR(IF(V27=0,"",COUNTIF('Pacing Guide'!$I$6:$I$33,1)),"") -> 3 | D27: =IF(SUMIF('Pacing Guide'!I$6:I$33,B27,'Pacing Guide'!K$6:K$33)=0,"",SUMIF('Pacing Guide'!I$6:I$33,B27,'Pacing Guide'!K$6:K$33)) -> 23 | E27: 23 | F27: =IFERROR(IF(Table3[[#This Row],[Class Activity Time]]=0,"",N27-E27),"") -> -23 | H27: =C27*'Advanced Guide'!#REF! ->  | I27: =Table3[[#This Row],[Sections Per Week]]*$G$10 -> 0 | J27: =$G$11*Table3[[#This Row],[Sections Per Week]] -> 0 | K27: =Table3[[#This Row],[Sections Per Week]]*$G$12 -> 0 | L27: =Table3[[#This Row],[Sections Per Week]]*$G$9 -> 0 | M27: ='Advanced Guide'!$C$13*Table3[[#This Row],[Sections Per Week]] -> 0 | N27: =IF(Table3[[#This Row],[Content Per Week]]=0,"",'Pacing Guide'!$A$32*'Advanced Guide'!$P$18) -> 0 | V27: =Table3[[#This Row],[Content Per Week]]/$P$17 -> 00:23:00
B28: 13 | C28: =IFERROR(IF(V28=0,"",COUNTIF('Pacing Guide'!$I$6:$I$33,1)),"") -> 3 | D28: =IF(SUMIF('Pacing Guide'!I$6:I$33,B28,'Pacing Guide'!K$6:K$33)=0,"",SUMIF('Pacing Guide'!I$6:I$33,B28,'Pacing Guide'!K$6:K$33)) -> 299 | E28: 299 | F28: =IFERROR(IF(Table3[[#This Row],[Class Activity Time]]=0,"",N28-E28),"") -> -299 | H28: =C28*'Advanced Guide'!#REF! ->  | I28: =Table3[[#This Row],[Sections Per Week]]*$G$10 -> 0 | J28: =$G$11*Table3[[#This Row],[Sections Per Week]] -> 0 | K28: =Table3[[#This Row],[Sections Per Week]]*$G$12 -> 0 | L28: =Table3[[#This Row],[Sections Per Week]]*$G$9 -> 0 | M28: ='Advanced Guide'!$C$13*Table3[[#This Row],[Sections Per Week]] -> 0 | N28: =IF(Table3[[#This Row],[Content Per Week]]=0,"",'Pacing Guide'!$A$32*'Advanced Guide'!$P$18) -> 0 | V28: =Table3[[#This Row],[Content Per Week]]/$P$17 -> 04:59:00
B29: 14 | C29: =IFERROR(IF(V29=0,"",COUNTIF('Pacing Guide'!$I$6:$I$33,1)),"") ->  | D29: =IF(SUMIF('Pacing Guide'!I$6:I$33,B29,'Pacing Guide'!K$6:K$33)=0,"",SUMIF('Pacing Guide'!I$6:I$33,B29,'Pacing Guide'!K$6:K$33)) ->  | F29: =IFERROR(IF(Table3[[#This Row],[Class Activity Time]]=0,"",N29-E29),"") ->  | H29: =C29*'Advanced Guide'!#REF! ->  | I29: =Table3[[#This Row],[Sections Per Week]]*$G$10 ->  | J29: =$G$11*Table3[[#This Row],[Sections Per Week]] ->  | K29: =Table3[[#This Row],[Sections Per Week]]*$G$12 ->  | L29: =Table3[[#This Row],[Sections Per Week]]*$G$9 ->  | M29: ='Advanced Guide'!$C$13*Table3[[#This Row],[Sections Per Week]] ->  | N29: =IF(Table3[[#This Row],[Content Per Week]]=0,"",'Pacing Guide'!$A$32*'Advanced Guide'!$P$18) -> 0 | V29: =Table3[[#This Row],[Content Per Week]]/$P$17 -> 
B30: 15 | C30: =IFERROR(IF(V30=0,"",COUNTIF('Pacing Guide'!$I$6:$I$33,1)),"") ->  | D30: =IF(SUMIF('Pacing Guide'!I$6:I$33,B30,'Pacing Guide'!K$6:K$33)=0,"",SUMIF('Pacing Guide'!I$6:I$33,B30,'Pacing Guide'!K$6:K$33)) ->  | F30: =IFERROR(IF(Table3[[#This Row],[Class Activity Time]]=0,"",N30-E30),"") ->  | H30: =C30*'Advanced Guide'!#REF! ->  | I30: =Table3[[#This Row],[Sections Per Week]]*$G$10 ->  | J30: =$G$11*Table3[[#This Row],[Sections Per Week]] ->  | K30: =Table3[[#This Row],[Sections Per Week]]*$G$12 ->  | L30: =Table3[[#This Row],[Sections Per Week]]*$G$9 ->  | M30: ='Advanced Guide'!$C$13*Table3[[#This Row],[Sections Per Week]] ->  | N30: =IF(Table3[[#This Row],[Content Per Week]]=0,"",'Pacing Guide'!$A$32*'Advanced Guide'!$P$18) -> 0 | V30: =Table3[[#This Row],[Content Per Week]]/$P$17 -> 
B31: 16 | C31: =IFERROR(IF(V31=0,"",COUNTIF('Pacing Guide'!$I$6:$I$33,1)),"") ->  | D31: =IF(SUMIF('Pacing Guide'!I$6:I$33,B31,'Pacing Guide'!K$6:K$33)=0,"",SUMIF('Pacing Guide'!I$6:I$33,B31,'Pacing Guide'!K$6:K$33)) ->  | F31: =IFERROR(IF(Table3[[#This Row],[Class Activity Time]]=0,"",N31-E31),"") ->  | H31: =C31*'Advanced Guide'!#REF! ->  | I31: =Table3[[#This Row],[Sections Per Week]]*$G$10 ->  | J31: =$G$11*Table3[[#This Row],[Sections Per Week]] ->  | K31: =Table3[[#This Row],[Sections Per Week]]*$G$12 ->  | L31: =Table3[[#This Row],[Sections Per Week]]*$G$9 ->  | M31: ='Advanced Guide'!$C$13*Table3[[#This Row],[Sections Per Week]] ->  | N31: =IF(Table3[[#This Row],[Content Per Week]]=0,"",'Pacing Guide'!$A$32*'Advanced Guide'!$P$18) -> 0 | V31: =Table3[[#This Row],[Content Per Week]]/$P$17 -> 
B32: 17 | C32: =IFERROR(IF(V32=0,"",COUNTIF('Pacing Guide'!$I$6:$I$33,1)),"") ->  | D32: =IF(SUMIF('Pacing Guide'!I$6:I$33,B32,'Pacing Guide'!K$6:K$33)=0,"",SUMIF('Pacing Guide'!I$6:I$33,B32,'Pacing Guide'!K$6:K$33)) ->  | F32: =IFERROR(IF(Table3[[#This Row],[Class Activity Time]]=0,"",N32-E32),"") ->  | H32: =C32*'Advanced Guide'!#REF! ->  | I32: =Table3[[#This Row],[Sections Per Week]]*$G$10 ->  | J32: =$G$11*Table3[[#This Row],[Sections Per Week]] ->  | K32: =Table3[[#This Row],[Sections Per Week]]*$G$12 ->  | L32: =Table3[[#This Row],[Sections Per Week]]*$G$9 ->  | M32: ='Advanced Guide'!$C$13*Table3[[#This Row],[Sections Per Week]] ->  | N32: =IF(Table3[[#This Row],[Content Per Week]]=0,"",'Pacing Guide'!$A$32*'Advanced Guide'!$P$18) -> 0 | V32: =Table3[[#This Row],[Content Per Week]]/$P$17 -> 
B33: 18 | C33: =IFERROR(IF(V33=0,"",COUNTIF('Pacing Guide'!$I$6:$I$33,1)),"") ->  | D33: =IF(SUMIF('Pacing Guide'!I$6:I$33,B33,'Pacing Guide'!K$6:K$33)=0,"",SUMIF('Pacing Guide'!I$6:I$33,B33,'Pacing Guide'!K$6:K$33)) ->  | F33: =IFERROR(IF(Table3[[#This Row],[Class Activity Time]]=0,"",N33-E33),"") ->  | H33: =C33*'Advanced Guide'!#REF! ->  | I33: =Table3[[#This Row],[Sections Per Week]]*$G$10 ->  | J33: =$G$11*Table3[[#This Row],[Sections Per Week]] ->  | K33: =Table3[[#This Row],[Sections Per Week]]*$G$12 ->  | L33: =Table3[[#This Row],[Sections Per Week]]*$G$9 ->  | M33: ='Advanced Guide'!$C$13*Table3[[#This Row],[Sections Per Week]] ->  | N33: =IF(Table3[[#This Row],[Content Per Week]]=0,"",'Pacing Guide'!$A$32*'Advanced Guide'!$P$18) -> 0 | V33: =Table3[[#This Row],[Content Per Week]]/$P$17 -> 
B34: 19 | C34: =IFERROR(IF(V34=0,"",COUNTIF('Pacing Guide'!$I$6:$I$33,1)),"") ->  | D34: =IF(SUMIF('Pacing Guide'!I$6:I$33,B34,'Pacing Guide'!K$6:K$33)=0,"",SUMIF('Pacing Guide'!I$6:I$33,B34,'Pacing Guide'!K$6:K$33)) ->  | E34: =IFERROR(D34+M34+I34+J34+K34+L34,"") ->  | F34: =IFERROR(IF(Table3[[#This Row],[Class Activity Time]]=0,"",N34-E34),"") ->  | H34: =C34*'Advanced Guide'!#REF! ->  | I34: =Table3[[#This Row],[Sections Per Week]]*$G$10 ->  | J34: =$G$11*Table3[[#This Row],[Sections Per Week]] ->  | K34: =Table3[[#This Row],[Sections Per Week]]*$G$12 ->  | L34: =Table3[[#This Row],[Sections Per Week]]*$G$9 ->  | M34: ='Advanced Guide'!$C$13*Table3[[#This Row],[Sections Per Week]] ->  | N34: =IF(Table3[[#This Row],[Content Per Week]]=0,"",'Pacing Guide'!$A$32*'Advanced Guide'!$P$18) -> 0 | V34: =Table3[[#This Row],[Content Per Week]]/$P$17 -> 
B35: 20 | C35: =IFERROR(IF(V35=0,"",COUNTIF('Pacing Guide'!$I$6:$I$33,1)),"") ->  | D35: =IF(SUMIF('Pacing Guide'!I$6:I$33,B35,'Pacing Guide'!K$6:K$33)=0,"",SUMIF('Pacing Guide'!I$6:I$33,B35,'Pacing Guide'!K$6:K$33)) ->  | E35: =IFERROR(D35+M35+I35+J35+K35+L35,"") ->  | F35: =IFERROR(IF(Table3[[#This Row],[Class Activity Time]]=0,"",N35-E35),"") ->  | H35: =C35*'Advanced Guide'!#REF! ->  | I35: =Table3[[#This Row],[Sections Per Week]]*$G$10 ->  | J35: =$G$11*Table3[[#This Row],[Sections Per Week]] ->  | K35: =Table3[[#This Row],[Sections Per Week]]*$G$12 ->  | L35: =Table3[[#This Row],[Sections Per Week]]*$G$9 ->  | M35: ='Advanced Guide'!$C$13*Table3[[#This Row],[Sections Per Week]] ->  | N35: =IF(Table3[[#This Row],[Content Per Week]]=0,"",'Pacing Guide'!$A$32*'Advanced Guide'!$P$18) -> 0 | V35: =Table3[[#This Row],[Content Per Week]]/$P$17 -> 
B36: 21 | C36: =IFERROR(IF(V36=0,"",COUNTIF('Pacing Guide'!$I$6:$I$33,1)),"") ->  | D36: =IF(SUMIF('Pacing Guide'!I$6:I$33,B36,'Pacing Guide'!K$6:K$33)=0,"",SUMIF('Pacing Guide'!I$6:I$33,B36,'Pacing Guide'!K$6:K$33)) ->  | F36: =IFERROR(IF(Table3[[#This Row],[Class Activity Time]]=0,"",N36-E36),"") ->  | H36: =C36*'Advanced Guide'!#REF! ->  | I36: =Table3[[#This Row],[Sections Per Week]]*$G$10 ->  | J36: =$G$11*Table3[[#This Row],[Sections Per Week]] ->  | K36: =Table3[[#This Row],[Sections Per Week]]*$G$12 ->  | L36: =Table3[[#This Row],[Sections Per Week]]*$G$9 ->  | M36: ='Advanced Guide'!$C$13*Table3[[#This Row],[Sections Per Week]] ->  | N36: =IF(Table3[[#This Row],[Content Per Week]]=0,"",'Pacing Guide'!$A$32*'Advanced Guide'!$P$18) -> 0 | V36: =Table3[[#This Row],[Content Per Week]]/$P$17 -> 
B37: 22 | C37: =IFERROR(IF(V37=0,"",COUNTIF('Pacing Guide'!$I$6:$I$33,1)),"") ->  | D37: =IF(SUMIF('Pacing Guide'!I$6:I$33,B37,'Pacing Guide'!K$6:K$33)=0,"",SUMIF('Pacing Guide'!I$6:I$33,B37,'Pacing Guide'!K$6:K$33)) ->  | F37: =IFERROR(IF(Table3[[#This Row],[Class Activity Time]]=0,"",N37-E37),"") ->  | H37: =C37*'Advanced Guide'!#REF! ->  | I37: =Table3[[#This Row],[Sections Per Week]]*$G$10 ->  | J37: =$G$11*Table3[[#This Row],[Sections Per Week]] ->  | K37: =Table3[[#This Row],[Sections Per Week]]*$G$12 ->  | L37: =Table3[[#This Row],[Sections Per Week]]*$G$9 ->  | M37: ='Advanced Guide'!$C$13*Table3[[#This Row],[Sections Per Week]] ->  | N37: =IF(Table3[[#This Row],[Content Per Week]]=0,"",'Pacing Guide'!$A$32*'Advanced Guide'!$P$18) -> 0 | V37: =Table3[[#This Row],[Content Per Week]]/$P$17 -> 
B38: 23 | C38: =IFERROR(IF(V38=0,"",COUNTIF('Pacing Guide'!$I$6:$I$33,1)),"") ->  | D38: =IF(SUMIF('Pacing Guide'!I$6:I$33,B38,'Pacing Guide'!K$6:K$33)=0,"",SUMIF('Pacing Guide'!I$6:I$33,B38,'Pacing Guide'!K$6:K$33)) ->  | F38: =IFERROR(IF(Table3[[#This Row],[Class Activity Time]]=0,"",N38-E38),"") ->  | H38: =C38*'Advanced Guide'!#REF! ->  | I38: =Table3[[#This Row],[Sections Per Week]]*$G$10 ->  | J38: =$G$11*Table3[[#This Row],[Sections Per Week]] ->  | K38: =Table3[[#This Row],[Sections Per Week]]*$G$12 ->  | L38: =Table3[[#This Row],[Sections Per Week]]*$G$9 ->  | M38: ='Advanced Guide'!$C$13*Table3[[#This Row],[Sections Per Week]] ->  | N38: =IF(Table3[[#This Row],[Content Per Week]]=0,"",'Pacing Guide'!$A$32*'Advanced Guide'!$P$18) -> 0 | V38: =Table3[[#This Row],[Content Per Week]]/$P$17 -> 
B39: 24 | C39: =IFERROR(IF(V39=0,"",COUNTIF('Pacing Guide'!$I$6:$I$33,1)),"") ->  | D39: =IF(SUMIF('Pacing Guide'!I$6:I$33,B39,'Pacing Guide'!K$6:K$33)=0,"",SUMIF('Pacing Guide'!I$6:I$33,B39,'Pacing Guide'!K$6:K$33)) ->  | F39: =IFERROR(IF(Table3[[#This Row],[Class Activity Time]]=0,"",N39-E39),"") ->  | H39: =C39*'Advanced Guide'!#REF! ->  | I39: =Table3[[#This Row],[Sections Per Week]]*$G$10 ->  | J39: =$G$11*Table3[[#This Row],[Sections Per Week]] ->  | K39: =Table3[[#This Row],[Sections Per Week]]*$G$12 ->  | L39: =Table3[[#This Row],[Sections Per Week]]*$G$9 ->  | M39: ='Advanced Guide'!$C$13*Table3[[#This Row],[Sections Per Week]] ->  | N39: =IF(Table3[[#This Row],[Content Per Week]]=0,"",'Pacing Guide'!$A$32*'Advanced Guide'!$P$18) -> 0 | V39: =Table3[[#This Row],[Content Per Week]]/$P$17 -> 
B40: 25 | C40: =IFERROR(IF(V40=0,"",COUNTIF('Pacing Guide'!$I$6:$I$33,1)),"") ->  | D40: =IF(SUMIF('Pacing Guide'!I$6:I$33,B40,'Pacing Guide'!K$6:K$33)=0,"",SUMIF('Pacing Guide'!I$6:I$33,B40,'Pacing Guide'!K$6:K$33)) ->  | F40: =IFERROR(IF(Table3[[#This Row],[Class Activity Time]]=0,"",N40-E40),"") ->  | H40: =C40*'Advanced Guide'!#REF! ->  | I40: =Table3[[#This Row],[Sections Per Week]]*$G$10 ->  | J40: =$G$11*Table3[[#This Row],[Sections Per Week]] ->  | K40: =Table3[[#This Row],[Sections Per Week]]*$G$12 ->  | L40: =Table3[[#This Row],[Sections Per Week]]*$G$9 ->  | M40: ='Advanced Guide'!$C$13*Table3[[#This Row],[Sections Per Week]] ->  | N40: =IF(Table3[[#This Row],[Content Per Week]]=0,"",'Pacing Guide'!$A$32*'Advanced Guide'!$P$18) -> 0 | V40: =Table3[[#This Row],[Content Per Week]]/$P$17 -> 
B41: 26 | C41: =IFERROR(IF(V41=0,"",COUNTIF('Pacing Guide'!$I$6:$I$33,1)),"") ->  | D41: =IF(SUMIF('Pacing Guide'!I$6:I$33,B41,'Pacing Guide'!K$6:K$33)=0,"",SUMIF('Pacing Guide'!I$6:I$33,B41,'Pacing Guide'!K$6:K$33)) ->  | F41: =IFERROR(IF(Table3[[#This Row],[Class Activity Time]]=0,"",N41-E41),"") ->  | H41: =C41*'Advanced Guide'!#REF! ->  | I41: =Table3[[#This Row],[Sections Per Week]]*$G$10 ->  | J41: =$G$11*Table3[[#This Row],[Sections Per Week]] ->  | K41: =Table3[[#This Row],[Sections Per Week]]*$G$12 ->  | L41: =Table3[[#This Row],[Sections Per Week]]*$G$9 ->  | M41: ='Advanced Guide'!$C$13*Table3[[#This Row],[Sections Per Week]] ->  | N41: =IF(Table3[[#This Row],[Content Per Week]]=0,"",'Pacing Guide'!$A$32*'Advanced Guide'!$P$18) -> 0 | V41: =Table3[[#This Row],[Content Per Week]]/$P$17 -> 
B42: 27 | C42: =IFERROR(IF(V42=0,"",COUNTIF('Pacing Guide'!$I$6:$I$33,1)),"") ->  | D42: =IF(SUMIF('Pacing Guide'!I$6:I$33,B42,'Pacing Guide'!K$6:K$33)=0,"",SUMIF('Pacing Guide'!I$6:I$33,B42,'Pacing Guide'!K$6:K$33)) ->  | F42: =IFERROR(IF(Table3[[#This Row],[Class Activity Time]]=0,"",N42-E42),"") ->  | H42: =C42*'Advanced Guide'!#REF! ->  | I42: =Table3[[#This Row],[Sections Per Week]]*$G$10 ->  | J42: =$G$11*Table3[[#This Row],[Sections Per Week]] ->  | K42: =Table3[[#This Row],[Sections Per Week]]*$G$12 ->  | L42: =Table3[[#This Row],[Sections Per Week]]*$G$9 ->  | M42: ='Advanced Guide'!$C$13*Table3[[#This Row],[Sections Per Week]] ->  | N42: =IF(Table3[[#This Row],[Content Per Week]]=0,"",'Pacing Guide'!$A$32*'Advanced Guide'!$P$18) -> 0 | V42: =Table3[[#This Row],[Content Per Week]]/$P$17 -> 
B43: 28 | C43: =IFERROR(IF(V43=0,"",COUNTIF('Pacing Guide'!$I$6:$I$33,1)),"") ->  | D43: =IF(SUMIF('Pacing Guide'!I$6:I$33,B43,'Pacing Guide'!K$6:K$33)=0,"",SUMIF('Pacing Guide'!I$6:I$33,B43,'Pacing Guide'!K$6:K$33)) ->  | F43: =IFERROR(IF(Table3[[#This Row],[Class Activity Time]]=0,"",N43-E43),"") ->  | H43: =C43*'Advanced Guide'!#REF! ->  | I43: =Table3[[#This Row],[Sections Per Week]]*$G$10 ->  | J43: =$G$11*Table3[[#This Row],[Sections Per Week]] ->  | K43: =Table3[[#This Row],[Sections Per Week]]*$G$12 ->  | L43: =Table3[[#This Row],[Sections Per Week]]*$G$9 ->  | M43: ='Advanced Guide'!$C$13*Table3[[#This Row],[Sections Per Week]] ->  | N43: =IF(Table3[[#This Row],[Content Per Week]]=0,"",'Pacing Guide'!$A$32*'Advanced Guide'!$P$18) -> 0 | V43: =Table3[[#This Row],[Content Per Week]]/$P$17 -> 
B44: 29 | C44: =IFERROR(IF(V44=0,"",COUNTIF('Pacing Guide'!$I$6:$I$33,1)),"") ->  | D44: =IF(SUMIF('Pacing Guide'!I$6:I$33,B44,'Pacing Guide'!K$6:K$33)=0,"",SUMIF('Pacing Guide'!I$6:I$33,B44,'Pacing Guide'!K$6:K$33)) ->  | F44: =IFERROR(IF(Table3[[#This Row],[Class Activity Time]]=0,"",N44-E44),"") ->  | H44: =C44*'Advanced Guide'!#REF! ->  | I44: =Table3[[#This Row],[Sections Per Week]]*$G$10 ->  | J44: =$G$11*Table3[[#This Row],[Sections Per Week]] ->  | K44: =Table3[[#This Row],[Sections Per Week]]*$G$12 ->  | L44: =Table3[[#This Row],[Sections Per Week]]*$G$9 ->  | M44: ='Advanced Guide'!$C$13*Table3[[#This Row],[Sections Per Week]] ->  | N44: =IF(Table3[[#This Row],[Content Per Week]]=0,"",'Pacing Guide'!$A$32*'Advanced Guide'!$P$18) -> 0 | V44: =Table3[[#This Row],[Content Per Week]]/$P$17 -> 
B45: 30 | C45: =IFERROR(IF(V45=0,"",COUNTIF('Pacing Guide'!$I$6:$I$33,1)),"") ->  | D45: =IF(SUMIF('Pacing Guide'!I$6:I$33,B45,'Pacing Guide'!K$6:K$33)=0,"",SUMIF('Pacing Guide'!I$6:I$33,B45,'Pacing Guide'!K$6:K$33)) ->  | F45: =IFERROR(IF(Table3[[#This Row],[Class Activity Time]]=0,"",N45-E45),"") ->  | H45: =C45*'Advanced Guide'!#REF! ->  | I45: =Table3[[#This Row],[Sections Per Week]]*$G$10 ->  | J45: =$G$11*Table3[[#This Row],[Sections Per Week]] ->  | K45: =Table3[[#This Row],[Sections Per Week]]*$G$12 ->  | L45: =Table3[[#This Row],[Sections Per Week]]*$G$9 ->  | M45: ='Advanced Guide'!$C$13*Table3[[#This Row],[Sections Per Week]] ->  | N45: =IF(Table3[[#This Row],[Content Per Week]]=0,"",'Pacing Guide'!$A$32*'Advanced Guide'!$P$18) -> 0 | V45: =Table3[[#This Row],[Content Per Week]]/$P$17 -> 
B46: 31 | C46: =IFERROR(IF(V46=0,"",COUNTIF('Pacing Guide'!$I$6:$I$33,1)),"") ->  | D46: =IF(SUMIF('Pacing Guide'!I$6:I$33,B46,'Pacing Guide'!K$6:K$33)=0,"",SUMIF('Pacing Guide'!I$6:I$33,B46,'Pacing Guide'!K$6:K$33)) ->  | F46: =IFERROR(IF(Table3[[#This Row],[Class Activity Time]]=0,"",N46-E46),"") ->  | H46: =C46*'Advanced Guide'!#REF! ->  | I46: =Table3[[#This Row],[Sections Per Week]]*$G$10 ->  | J46: =$G$11*Table3[[#This Row],[Sections Per Week]] ->  | K46: =Table3[[#This Row],[Sections Per Week]]*$G$12 ->  | L46: =Table3[[#This Row],[Sections Per Week]]*$G$9 ->  | M46: ='Advanced Guide'!$C$13*Table3[[#This Row],[Sections Per Week]] ->  | N46: =IF(Table3[[#This Row],[Content Per Week]]=0,"",'Pacing Guide'!$A$32*'Advanced Guide'!$P$18) -> 0 | V46: =Table3[[#This Row],[Content Per Week]]/$P$17 -> 
B47: 32 | C47: =IFERROR(IF(V47=0,"",COUNTIF('Pacing Guide'!$I$6:$I$33,1)),"") ->  | D47: =IF(SUMIF('Pacing Guide'!I$6:I$33,B47,'Pacing Guide'!K$6:K$33)=0,"",SUMIF('Pacing Guide'!I$6:I$33,B47,'Pacing Guide'!K$6:K$33)) ->  | F47: =IFERROR(IF(Table3[[#This Row],[Class Activity Time]]=0,"",N47-E47),"") ->  | H47: =C47*'Advanced Guide'!#REF! ->  | I47: =Table3[[#This Row],[Sections Per Week]]*$G$10 ->  | J47: =$G$11*Table3[[#This Row],[Sections Per Week]] ->  | K47: =Table3[[#This Row],[Sections Per Week]]*$G$12 ->  | L47: =Table3[[#This Row],[Sections Per Week]]*$G$9 ->  | M47: ='Advanced Guide'!$C$13*Table3[[#This Row],[Sections Per Week]] ->  | N47: =IF(Table3[[#This Row],[Content Per Week]]=0,"",'Pacing Guide'!$A$32*'Advanced Guide'!$P$18) -> 0 | V47: =Table3[[#This Row],[Content Per Week]]/$P$17 -> 
B48: 33 | C48: =IFERROR(IF(V48=0,"",COUNTIF('Pacing Guide'!$I$6:$I$33,1)),"") ->  | D48: =IF(SUMIF('Pacing Guide'!I$6:I$33,B48,'Pacing Guide'!K$6:K$33)=0,"",SUMIF('Pacing Guide'!I$6:I$33,B48,'Pacing Guide'!K$6:K$33)) ->  | F48: =IFERROR(IF(Table3[[#This Row],[Class Activity Time]]=0,"",N48-E48),"") ->  | H48: =C48*'Advanced Guide'!#REF! ->  | I48: =Table3[[#This Row],[Sections Per Week]]*$G$10 ->  | J48: =$G$11*Table3[[#This Row],[Sections Per Week]] ->  | K48: =Table3[[#This Row],[Sections Per Week]]*$G$12 ->  | L48: =Table3[[#This Row],[Sections Per Week]]*$G$9 ->  | M48: ='Advanced Guide'!$C$13*Table3[[#This Row],[Sections Per Week]] ->  | N48: =IF(Table3[[#This Row],[Content Per Week]]=0,"",'Pacing Guide'!$A$32*'Advanced Guide'!$P$18) -> 0 | V48: =Table3[[#This Row],[Content Per Week]]/$P$17 -> 
B49: 34 | C49: =IFERROR(IF(V49=0,"",COUNTIF('Pacing Guide'!$I$6:$I$33,1)),"") ->  | D49: =IF(SUMIF('Pacing Guide'!I$6:I$33,B49,'Pacing Guide'!K$6:K$33)=0,"",SUMIF('Pacing Guide'!I$6:I$33,B49,'Pacing Guide'!K$6:K$33)) ->  | F49: =IFERROR(IF(Table3[[#This Row],[Class Activity Time]]=0,"",N49-E49),"") ->  | H49: =C49*'Advanced Guide'!#REF! ->  | I49: =Table3[[#This Row],[Sections Per Week]]*$G$10 ->  | J49: =$G$11*Table3[[#This Row],[Sections Per Week]] ->  | K49: =Table3[[#This Row],[Sections Per Week]]*$G$12 ->  | L49: =Table3[[#This Row],[Sections Per Week]]*$G$9 ->  | M49: ='Advanced Guide'!$C$13*Table3[[#This Row],[Sections Per Week]] ->  | N49: =IF(Table3[[#This Row],[Content Per Week]]=0,"",'Pacing Guide'!$A$32*'Advanced Guide'!$P$18) -> 0 | V49: =Table3[[#This Row],[Content Per Week]]/$P$17 -> 
B50: 35 | C50: =IFERROR(IF(V50=0,"",COUNTIF('Pacing Guide'!$I$6:$I$33,1)),"") ->  | D50: =IF(SUMIF('Pacing Guide'!I$6:I$33,B50,'Pacing Guide'!K$6:K$33)=0,"",SUMIF('Pacing Guide'!I$6:I$33,B50,'Pacing Guide'!K$6:K$33)) ->  | F50: =IFERROR(IF(Table3[[#This Row],[Class Activity Time]]=0,"",N50-E50),"") ->  | H50: =C50*'Advanced Guide'!#REF! ->  | I50: =Table3[[#This Row],[Sections Per Week]]*$G$10 ->  | J50: =$G$11*Table3[[#This Row],[Sections Per Week]] ->  | K50: =Table3[[#This Row],[Sections Per Week]]*$G$12 ->  | L50: =Table3[[#This Row],[Sections Per Week]]*$G$9 ->  | M50: ='Advanced Guide'!$C$13*Table3[[#This Row],[Sections Per Week]] ->  | N50: =IF(Table3[[#This Row],[Content Per Week]]=0,"",'Pacing Guide'!$A$32*'Advanced Guide'!$P$18) -> 0 | V50: =Table3[[#This Row],[Content Per Week]]/$P$17 -> 
B51: 36 | C51: =IFERROR(IF(V51=0,"",COUNTIF('Pacing Guide'!$I$6:$I$33,1)),"") ->  | D51: =IF(SUMIF('Pacing Guide'!I$6:I$33,B51,'Pacing Guide'!K$6:K$33)=0,"",SUMIF('Pacing Guide'!I$6:I$33,B51,'Pacing Guide'!K$6:K$33)) ->  | F51: =IFERROR(IF(Table3[[#This Row],[Class Activity Time]]=0,"",N51-E51),"") ->  | H51: =C51*'Advanced Guide'!#REF! ->  | I51: =Table3[[#This Row],[Sections Per Week]]*$G$10 ->  | J51: =$G$11*Table3[[#This Row],[Sections Per Week]] ->  | K51: =Table3[[#This Row],[Sections Per Week]]*$G$12 ->  | L51: =Table3[[#This Row],[Sections Per Week]]*$G$9 ->  | M51: ='Advanced Guide'!$C$13*Table3[[#This Row],[Sections Per Week]] ->  | N51: =IF(Table3[[#This Row],[Content Per Week]]=0,"",'Pacing Guide'!$A$32*'Advanced Guide'!$P$18) -> 0 | V51: =Table3[[#This Row],[Content Per Week]]/$P$17 -> 
B52: 37 | C52: =IFERROR(IF(V52=0,"",COUNTIF('Pacing Guide'!$I$6:$I$33,1)),"") ->  | D52: =IF(SUMIF('Pacing Guide'!I$6:I$33,B52,'Pacing Guide'!K$6:K$33)=0,"",SUMIF('Pacing Guide'!I$6:I$33,B52,'Pacing Guide'!K$6:K$33)) ->  | F52: =IFERROR(IF(Table3[[#This Row],[Class Activity Time]]=0,"",N52-E52),"") ->  | H52: =C52*'Advanced Guide'!#REF! ->  | I52: =Table3[[#This Row],[Sections Per Week]]*$G$10 ->  | J52: =$G$11*Table3[[#This Row],[Sections Per Week]] ->  | K52: =Table3[[#This Row],[Sections Per Week]]*$G$12 ->  | L52: =Table3[[#This Row],[Sections Per Week]]*$G$9 ->  | M52: ='Advanced Guide'!$C$13*Table3[[#This Row],[Sections Per Week]] ->  | N52: =IF(Table3[[#This Row],[Content Per Week]]=0,"",'Pacing Guide'!$A$32*'Advanced Guide'!$P$18) -> 0 | V52: =Table3[[#This Row],[Content Per Week]]/$P$17 -> 
B53: 38 | C53: =IFERROR(IF(V53=0,"",COUNTIF('Pacing Guide'!$I$6:$I$33,1)),"") ->  | D53: =IF(SUMIF('Pacing Guide'!I$6:I$33,B53,'Pacing Guide'!K$6:K$33)=0,"",SUMIF('Pacing Guide'!I$6:I$33,B53,'Pacing Guide'!K$6:K$33)) ->  | F53: =IFERROR(IF(Table3[[#This Row],[Class Activity Time]]=0,"",N53-E53),"") ->  | H53: =C53*'Advanced Guide'!#REF! ->  | I53: =Table3[[#This Row],[Sections Per Week]]*$G$10 ->  | J53: =$G$11*Table3[[#This Row],[Sections Per Week]] ->  | K53: =Table3[[#This Row],[Sections Per Week]]*$G$12 ->  | L53: =Table3[[#This Row],[Sections Per Week]]*$G$9 ->  | M53: ='Advanced Guide'!$C$13*Table3[[#This Row],[Sections Per Week]] ->  | N53: =IF(Table3[[#This Row],[Content Per Week]]=0,"",'Pacing Guide'!$A$32*'Advanced Guide'!$P$18) -> 0 | V53: =Table3[[#This Row],[Content Per Week]]/$P$17 -> 
B54: 39 | C54: =IFERROR(IF(V54=0,"",COUNTIF('Pacing Guide'!$I$6:$I$33,1)),"") ->  | D54: =IF(SUMIF('Pacing Guide'!I$6:I$33,B54,'Pacing Guide'!K$6:K$33)=0,"",SUMIF('Pacing Guide'!I$6:I$33,B54,'Pacing Guide'!K$6:K$33)) ->  | F54: =IFERROR(IF(Table3[[#This Row],[Class Activity Time]]=0,"",N54-E54),"") ->  | H54: =C54*'Advanced Guide'!#REF! ->  | I54: =Table3[[#This Row],[Sections Per Week]]*$G$10 ->  | J54: =$G$11*Table3[[#This Row],[Sections Per Week]] ->  | K54: =Table3[[#This Row],[Sections Per Week]]*$G$12 ->  | L54: =Table3[[#This Row],[Sections Per Week]]*$G$9 ->  | M54: ='Advanced Guide'!$C$13*Table3[[#This Row],[Sections Per Week]] ->  | N54: =IF(Table3[[#This Row],[Content Per Week]]=0,"",'Pacing Guide'!$A$32*'Advanced Guide'!$P$18) -> 0 | V54: =Table3[[#This Row],[Content Per Week]]/$P$17 -> 
B55: 40 | C55: =IFERROR(IF(V55=0,"",COUNTIF('Pacing Guide'!$I$6:$I$33,1)),"") ->  | D55: =IF(SUMIF('Pacing Guide'!I$6:I$33,B55,'Pacing Guide'!K$6:K$33)=0,"",SUMIF('Pacing Guide'!I$6:I$33,B55,'Pacing Guide'!K$6:K$33)) ->  | F55: =IFERROR(IF(Table3[[#This Row],[Class Activity Time]]=0,"",N55-E55),"") ->  | H55: =C55*'Advanced Guide'!#REF! ->  | I55: =Table3[[#This Row],[Sections Per Week]]*$G$10 ->  | J55: =$G$11*Table3[[#This Row],[Sections Per Week]] ->  | K55: =Table3[[#This Row],[Sections Per Week]]*$G$12 ->  | L55: =Table3[[#This Row],[Sections Per Week]]*$G$9 ->  | M55: ='Advanced Guide'!$C$13*Table3[[#This Row],[Sections Per Week]] ->  | N55: =IF(Table3[[#This Row],[Content Per Week]]=0,"",'Pacing Guide'!$A$32*'Advanced Guide'!$P$18) -> 0 | V55: =Table3[[#This Row],[Content Per Week]]/$P$17 -> 

Sheet Weekly Guide (hidden)
B2: Step 7: Refresh your Weekly Guide Any items and minute changes made in Steps 3 & 4 will re-adjust your weekly guide. 1 ) Click cell C3 (Weekly Guide) below. 2) At the top of the ribbon, click Pivotable Analyze (see image at right) 3) Click Refresh.

Sheet Sheet2 (hidden)
B5: Totals
A6: Total Minutes of resources: | B6: =GETPIVOTDATA("Time",'Pacing Guide'!$K$5) -> 299
A7: Weekly Minutes to cover content: | B7: =(GETPIVOTDATA("Time",'Pacing Guide'!$K$5))/'Pacing Guide'!A23 -> 24.91666667

Sheet Changing times.
A1: Chapter | B1: Section | C1: Time | D1: Lectures | E1: Live Projects | F1: Practice Tests & MOS Cert | G1: Your Own Projects | H1: Videos | I1: Skills | J1: Challenge | K1: Applied | L1: Labs | M1: Text | N1: Exams
A2: 01.0: Course Overview | B2: 01.01: Word and the Microsoft Suite | C2: 5 | D2: ='Advanced Guide'!$C$13 -> 0 | H2: 5 | L2: 0 | M2: 5 | Q2: Yes
A3: 01.0: Course Overview | B3: 01.02: Course Features | C3: 3 | D3: ='Advanced Guide'!$C$13 -> 0 | H3: 4 | M3: 30 | Q3: No
A4: 02.0: Common Office Features | B4: 02.01: Getting Started with Office | C4: 18 | D4: ='Advanced Guide'!$C$13 -> 0 | H4: 21 | L4: 24 | M4: 10
A5: 02.0: Common Office Features | B5: 02.02: Customizing Views and Options | C5: 7 | D5: ='Advanced Guide'!$C$13 -> 0 | H5: 7 | L5: 24 | M5: 5
A6: 02.0: Common Office Features | B6: 02.03: Printing Files | C6: 5 | D6: ='Advanced Guide'!$C$13 -> 0 | H6: 5 | L6: 24 | M6: 5
A7: 02.0: Common Office Features | B7: 02.04: Navigating Files | C7: 9 | H7: 9 | L7: 24 | M7: 5
A8: 02.0: Common Office Features | B8: 02.05: Working with Objects | C8: 12 | E8: 0 | H8: 9 | L8: 24 | M8: 5
A9: 03.0: Document and Text Basics | B9: 03.01: Creating Documents and Using the Clipboard | C9: 18 | D9: ='Advanced Guide'!$C$13 -> 0 | H9: 13 | L9: 24 | M9: 10
A10: 03.0: Document and Text Basics | B10: 03.02: Modifying Fonts | C10: 8 | D10: ='Advanced Guide'!$C$13 -> 0 | H10: 3 | L10: 0 | M10: 5 | N10: 0
A11: 03.0: Document and Text Basics | B11: 03.03: Formatting Paragraphs | C11: 16 | D11: ='Advanced Guide'!$C$13 -> 0 | H11: 10 | I11: 25 | J11: 15 | K11: 20 | M11: 10 | N11: 0
A12: 03.0: Document and Text Basics | B12: 03.04: Editing Documents | C12: 10 | D12: ='Advanced Guide'!$C$13 -> 0 | H12: 10 | I12: 25 | J12: 15 | K12: 20 | M12: 10 | N12: 0
A13: 04.0: Document Formatting and Graphics | B13: 04.01: Formatting Pages | C13: 8 | D13: ='Advanced Guide'!$C$13 -> 0 | H13: 10 | I13: 25 | J13: 15 | K13: 20 | M13: 10 | N13: 0
A14: 04.0: Document Formatting and Graphics | B14: 04.02: Inserting Illustrations and Other Elements | C14: 13
A15: 04.0: Document Formatting and Graphics | B15: 04.03: Creating and Formatting Tables | C15: 11 | D15: ='Advanced Guide'!$C$13 -> 0 | H15: 19 | I15: 25 | J15: 15 | K15: 20 | M15: 10 | N15: 0
A16: 04.0: Document Formatting and Graphics | B16: 04.04: Using Themes, Styles, and Templates | C16: 11 | D16: ='Advanced Guide'!$C$13 -> 0 | H16: 21 | I16: 25 | J16: 15 | K16: 20 | M16: 10 | N16: 0
A17: 05.0: Academic and Workplace Features | B17: 05.01: Managing References | C17: 12 | G17: ='Pacing Guide'!G14 -> 0
A18: 05.0: Academic and Workplace Features | B18: 05.02: Managing Headers, Footers, and Sections | C18: 16 | D18: ='Advanced Guide'!$C$13 -> 0 | H18: 6 | I18: 25 | J18: 15 | K18: 20 | M18: 10 | N18: 0
A19: 05.0: Academic and Workplace Features | B19: 05.03: Using Office Collaboration Features | C19: 9 | D19: ='Advanced Guide'!$C$13 -> 0 | H19: 12 | I19: 25 | J19: 15 | K19: 20 | M19: 10 | N19: 0
A20: 06.0: Word Associate Live Projects | B20: 06.01: Word Live Projects | C20: 4 | G20: ='Pacing Guide'!G15 -> 0
A21: 08.0: Custom Styles | B21: 08.01: Using Custom Styles and Themes | C21: 17 | D21: ='Advanced Guide'!$C$13 -> 0 | H21: 4 | M21: 10 | N21: 0
A22: 08.0: Custom Styles | B22: 08.02: Using Charts | C22: 12 | E22: ='Pacing Guide'!G8 -> 30
A23: 09.0: Advanced Editing and References | B23: 09.01: Advanced Find and Replace | C23: 12 | E23: ='Pacing Guide'!G9 -> 30
A24: 09.0: Advanced Editing and References | B24: 09.02: Indexes and Captions | C24: 11 | E24: ='Pacing Guide'!G10 -> 30
A25: 09.0: Advanced Editing and References | B25: 09.03: Review and Protect Documents | C25: 19 | D25: ='Advanced Guide'!$C$13 -> 0 | H25: 18 | M25: 10 | N25: 0
A26: 10.0: Automatic Document Contents | B26: 10.01: Forms and Fields | C26: 10 | F26: 90
A27: 10.0: Automatic Document Contents | B27: 10.02: Mail Merge | C27: 12 | F27: 240
A28: 10.0: Automatic Document Contents | B28: 10.03: Using Macros | C28: 11 | H28: 8 | I28: 30 | J28: 20 | K28: 25 | M28: 10
A30: Highest Score
A31: Test Score
A32: Average Score
A33: 100% or 0
A34: Pass/Fall
A35: Participation
A36: No Grade

Sheet TypicalWeeks (hidden)
A1: Weeks
A2: 1
A3: 4
A4: 5
A5: 6
A6: 7
A7: 8
A8: 9
A9: 10
A10: 11
A11: 12
A12: 13
A13: 14
A14: 16
A15: 17
A16: 18
A17: 19
A18: 20.1
A19: 21.21470588
A20: 22.32941176
A21: 23.44411765
A22: 24.55882353
A23: 25.67352941
A24: 26.78823529
A25: 27.90294118
A26: 29.01764706
A27: 30.13235294
A28: 31.24705882
A29: 32.36176471
A30: 33.47647059
A31: 34.59117647
A32: 35.70588235
A33: 36.82058824
A34: 37.93529412
A35: 39.05
A36: 40.16470588
A37: 41.27941176
A38: 42.39411765
A39: 43.50882353
